bitfinex-derivatives/quotes_ETHF0:USTF0_20241229
["timestamp","ask_amount","ask_price","bid_price","bid_amount"]
[1735464850113,3.2078,3404.2,3404.1,0.66218135]
[1735464850914,3.2078,3404.2,3404.1,0.66217219]
[1735464851214,3.2078,3404.2,3404.1,0.29424]
[1735464851414,3.2078,3404.2,3404.1,0.66216468]
[1735464851712,3.2078,3404.2,3404.1,1.56386468]
[1735464852012,3.2078,3404.3,3404.2,0.29423]
[1735464852210,3.2078,3404.3,3404.2,0.66215468]
[1735464853307,3.2078,3404.3,3404.2,0.66215177]
[1735464853811,3.2078,3404.3,3404.2,0.29423]
[1735464854014,3.2078,3404.3,3404.2,5.70940604]
[1735464856707,4.24565149,3404.3,3404.2,5.25230569]
[1735464856908,4.24565149,3404.3,3404.2,4.88438731]
[1735464857614,4.24565149,3404.3,3404.2,0.66216559]
[1735464859014,3.2078,3404.3,3404.2,0.66216559]
[1735464859409,3.2078,3404.3,3404.2,0.29423]
[1735464863716,3.2078,3404.3,3404.1,0.4408]
[1735464863914,3.2078,3404.3,3404.2,0.29423]
[1735464866509,3.2078,3404.3,3404.0,4.59015731]
[1735464866510,0.29424,3404.1,3404.0,4.59015731]
[1735464867019,1.33209149,3404.1,3404.0,4.59015731]
[1735464867216,1.03785149,3404.1,3404.0,4.59015731]
[1735464867417,1.03785149,3404.1,3404.0,4.88440731]
[1735464867714,1.03785149,3404.1,3404.0,0.29425]
[1735464869019,0.4346,3404.2,3404.1,0.29424]
[1735464869223,1.47245149,3404.2,3404.1,0.29424]
[1735464869920,3.2078,3404.3,3404.2,0.29423]
[1735464870222,3.2078,3404.3,3404.2,1.33208149]
[1735464870422,3.2078,3404.3,3404.2,1.69999622]
[1735464870619,3.2078,3404.3,3404.2,0.66214473]
[1735464871315,3.2078,3404.3,3404.2,1.08354473]
[1735464871515,6.68024982,3404.3,3404.2,5.67370204]
[1735464872421,6.68024982,3404.3,3404.2,5.67369601]
[1735464872721,3.2078,3404.3,3404.2,1.0835387]
[1735464873618,5.78741637,3404.4,3404.2,0.7893087]
[1735464873822,5.78741637,3404.4,3404.3,0.29423]
[1735464877222,5.78741637,3404.4,3404.3,0.66212909]
[1735464878526,5.78741637,3404.4,3404.3,0.66212024]
[1735464878925,5.78741637,3404.4,3404.3,0.66211998]
[1735464879429,5.78741637,3404.4,3404.3,4.95804729]
[1735464879430,3.47183944,3404.4,3404.3,4.95804729]
[1735464879730,3.47183944,3404.4,3404.3,5.25227729]
[1735464880830,3.47183944,3404.4,3404.3,5.25227]
[1735464881026,2.3143106,3404.4,3404.3,6.12225506]
[1735464881523,2.3143106,3404.4,3404.3,6.12225502]
[1735464882333,2.3143106,3404.5,3404.4,0.29422]
[1735464882530,2.3143106,3404.5,3404.4,0.66210265]
[1735464884320,2.3143106,3404.5,3404.4,0.29422]
[1735464884321,2.7546106,3404.5,3404.4,0.29422]
[1735464885038,2.3143106,3404.5,3404.4,0.66210656]
[1735464885735,6.67963944,3404.6,3404.5,0.29421]
[1735464886132,6.67963944,3404.6,3404.5,0.66208966]
[1735464886431,6.67963944,3404.6,3404.5,0.29421]
[1735464886930,5.52115828,3404.6,3404.5,0.29421]
[1735464887431,5.52115828,3404.6,3404.5,0.72661]
[1735464889528,3.2078,3404.6,3404.5,0.72661]
[1735464891034,5.52115828,3404.6,3404.5,0.72661]
[1735464892725,3.2078,3404.6,3404.5,0.72661]
[1735464893833,5.52115828,3404.6,3404.5,0.72661]
[1735464894333,5.52115828,3404.6,3404.5,1.76406154]
[1735464894734,5.52115828,3404.6,3404.5,0.72661]
[1735464894936,5.52115828,3404.6,3404.5,1.09448041]
[1735464895138,5.52115828,3404.6,3404.5,2.13193195]
[1735464895327,3.2078,3404.6,3404.5,2.13193195]
[1735464896133,4.62911925,3404.7,3404.5,1.83772195]
[1735464896334,4.62911925,3404.7,3404.6,0.2942]
[1735464897240,4.62911925,3404.7,3404.6,0.66205879]
[1735464897843,4.62911925,3404.7,3404.6,1.09855879]
[1735464899336,3.2078,3405.0,3404.7,0.29419]
[1735464899337,4.62911925,3404.8,3404.7,0.29419]
[1735464899536,4.62911925,3404.8,3404.7,0.66204755]
[1735464900539,4.62911925,3404.8,3404.7,0.29419]
[1735464901045,4.92330925,3404.8,3404.7,0.29419]
[1735464901347,4.62911925,3404.8,3404.7,0.29419]
[1735464901843,3.2078,3405.0,3404.9,0.29417]
[1735464902239,3.657,3405.0,3404.9,0.29417]
[1735464902640,3.2078,3405.0,3404.9,0.29417]
[1735464902945,6.67527013,3405.0,3404.9,0.29417]
[1735464907647,7.12477013,3405.0,3404.9,0.29417]
[1735464909348,7.12477013,3405.0,3404.4,5.64378965]
[1735464909548,0.72528,3404.9,3404.8,0.29418]
[1735464911453,0.4311,3404.9,3404.8,0.29418]
[1735464913552,3.2078,3405.0,3404.6,1.93835154]
[1735464913756,3.2078,3405.0,3404.9,0.29417]
[1735464915455,3.50197,3405.0,3404.9,0.29417]
[1735464915652,3.2078,3405.0,3404.9,0.29417]
[1735464916054,4.24525154,3405.0,3404.3,1.77300154]
[1735464916457,0.29419,3404.8,3404.7,0.29419]
[1735464916656,3.50197,3405.0,3404.9,0.29417]
[1735464920961,0.29417,3405.0,3404.9,0.29417]
[1735464921157,3.50197,3405.0,3404.9,0.29417]
[1735464923866,0.29418,3404.9,3404.8,0.29417]
[1735464925063,3.2078,3404.9,3404.8,0.29417]
[1735464928562,0.29417,3405.0,3404.6,0.9196]
[1735464928766,0.29417,3405.0,3404.9,0.29417]
[1735464929265,5.14425154,3405.1,3404.6,0.9196]
[1735464929465,0.29421,3404.5,3404.4,0.29421]
[1735464930468,1.03745154,3404.5,3404.2,4.60633811]
[1735464930667,4.53948154,3404.3,3404.2,4.60633811]
[1735464930970,4.24525154,3404.3,3404.0,0.72574]
[1735464931171,0.4333,3404.2,3404.1,0.29424]
[1735464931470,0.72753,3404.2,3404.1,0.29424]
[1735464932064,3.2078,3404.3,3404.0,0.4315]
[1735464932264,3.2078,3404.3,3404.2,0.29423]
[1735464932265,3.50203,3404.3,3404.2,0.29423]
[1735464932562,8.13270862,3404.3,3404.2,0.29423]
[1735464934862,3.50203,3404.3,3404.2,0.29423]
[1735464935764,3.92753,3404.3,3404.2,0.29423]
[1735464937067,0.29424,3404.2,3404.1,0.29424]
[1735464940168,3.76306574,3404.2,3404.1,0.29424]
[1735464940972,3.46882574,3404.2,3404.1,0.29424]
[1735464941177,3.76305574,3404.2,3404.1,0.29424]
[1735464942266,3.46882574,3404.2,3404.1,0.29424]
[1735464944073,4.18855574,3404.3,3404.2,0.29423]
[1735464944470,3.89432574,3404.3,3404.0,0.4315]
[1735464944670,0.29424,3404.1,3404.0,0.72575]
[1735464945077,0.29424,3404.2,3404.1,0.29424]
[1735464946176,3.76306574,3404.2,3404.1,0.29424]
[1735464947880,4.92491862,3404.2,3404.1,0.29424]
[1735464950385,0.29424,3404.2,3404.1,0.29424]
[1735464954779,3.76103882,3404.2,3404.1,0.29424]
[1735464960491,3.46679882,3404.2,3403.9,0.4613]
[1735464960693,0.29425,3404.0,3403.9,0.75556]
[1735464960993,0.29425,3404.0,3403.9,0.4613]
[1735464961788,2.60588022,3404.0,3403.9,0.4613]
[1735464963391,2.31163022,3404.0,3403.8,0.4598]
[1735464963593,0.29426,3403.9,3403.8,0.4598]
[1735464963894,0.29426,3403.9,3403.8,0.75407]
[1735464964295,0.29426,3403.9,3403.8,0.4598]
[1735464964695,2.60589022,3403.9,3403.8,0.75407]
[1735464965999,0.29426,3403.9,3403.8,0.75407]
[1735464969303,3.46679882,3404.0,3403.8,0.4598]
[1735464969499,3.76104882,3404.0,3403.9,0.29426]
[1735464969802,3.46679882,3404.0,3403.9,0.29426]
[1735464970414,4.62239842,3404.0,3403.9,0.29426]
[1735464974703,4.91664842,3404.0,3403.9,0.29426]
[1735464975498,6.82579982,3404.2,3403.8,0.4598]
[1735464975807,0.29426,3403.9,3403.8,0.75406]
[1735464976008,0.29426,3403.9,3403.8,1.12202231]
[1735464976802,4.92585589,3403.9,3403.8,1.12202231]
[1735464977005,4.92585589,3403.9,3403.8,0.75406]
[1735464977910,0.29426,3403.9,3403.8,0.75406]
[1735464981803,0.29426,3403.9,3403.8,5.36039811]
[1735464983106,4.63159589,3404.0,3403.8,6.10358965]
[1735464983406,4.63159589,3404.0,3403.9,0.29426]
[1735464984410,0.29425,3404.0,3403.9,4.90059811]
[1735464985110,0.29425,3404.0,3403.9,5.26855083]
[1735464985309,0.29425,3404.0,3403.9,0.66221272]
[1735464988111,0.29425,3404.0,3403.9,0.29426]
[1735464988313,0.29425,3404.0,3403.9,0.66221466]
[1735464988616,0.29425,3404.0,3403.9,0.66221361]
[1735464989216,6.08259828,3404.0,3403.9,0.66221361]
[1735464990416,5.78834828,3404.0,3403.8,0.4598]
[1735464990612,6.08259828,3404.0,3403.9,0.36795568]
[1735464990810,6.50539828,3404.0,3403.9,0.36795568]
[1735464991011,6.21114828,3404.0,3403.7,5.04933811]
[1735464991211,0.29427,3403.8,3403.7,5.34361811]
[1735464991414,0.29427,3403.8,3403.7,5.71158234]
[1735464992513,3.76935025,3403.8,3403.7,13.45618818]
[1735464994308,3.76935025,3403.8,3403.7,13.45619]
[1735464997319,3.76935025,3403.8,3403.7,13.08822395]
[1735464997519,3.76935025,3403.8,3403.7,13.45618831]
[1735464998222,3.76935025,3403.8,3403.7,13.4561894]
[1735464998816,3.47508025,3403.8,3403.7,13.4561894]
[1735464999221,3.76935025,3403.8,3403.7,13.4561894]
[1735464999523,3.47508025,3403.8,3403.7,13.4561894]
[1735464999824,3.47508025,3403.8,3403.7,13.08822395]
[1735465000123,3.47508025,3403.8,3403.7,13.45618916]
[1735465000523,3.47508025,3403.8,3403.7,13.45618904]
[1735465002623,4.92771033,3403.9,3403.8,0.29427]
[1735465002921,4.92771033,3403.9,3403.8,0.66223509]
[1735465003525,4.92771033,3403.9,3403.8,6.12794189]
[1735465005025,4.92771033,3403.9,3403.8,10.74137291]
[1735465005719,4.92771033,3403.9,3403.8,10.44710291]
[1735465005923,4.92771033,3403.9,3403.8,10.07913901]
[1735465006325,4.92771033,3403.9,3403.8,4.61343102]
[1735465007629,0.29427,3403.8,3403.7,0.443]
[1735465007828,0.75517,3403.8,3403.7,0.443]
[1735465008220,0.4609,3403.8,3403.6,4.61343102]
[1735465008422,0.29428,3403.7,3403.6,4.61343102]
[1735465008617,0.29428,3403.7,3403.6,4.98142458]
[1735465008925,0.29428,3403.7,3403.6,5.2757073]
[1735465009824,0.29428,3403.7,3403.6,5.2757091]
[1735465010426,0.29428,3403.7,3403.6,6.13192669]
[1735465011632,4.9279661,3403.8,3403.7,0.29428]
[1735465011929,4.9279661,3403.8,3403.7,0.66226808]
[1735465012326,4.6336961,3403.8,3403.7,0.66226808]
[1735465012530,4.6336961,3403.8,3403.7,1.09816808]
[1735465012931,3.50206,3403.9,3403.7,6.27352166]
[1735465012932,8.1357561,3403.9,3403.7,6.27352166]
[1735465013131,8.1357561,3403.9,3403.8,0.75027]
[1735465013526,8.1357561,3403.9,3403.8,0.456]
[1735465014125,3.50206,3403.9,3403.8,0.456]
[1735465014526,0.29427,3403.8,3403.7,0.4359]
[1735465014934,0.29428,3403.7,3403.6,4.61437389]
[1735465015134,0.29428,3403.7,3403.5,0.8905]
[1735465015135,0.29429,3403.6,3403.5,0.8905]
[1735465015334,1.03745154,3403.6,3403.4,4.61437389]
[1735465015629,0.7443,3403.5,3403.4,5.06227389]
[1735465016234,3.9521,3403.5,3403.4,4.61437389]
[1735465016438,3.9521,3403.5,3403.1,5.06227389]
[1735465016439,0.29432,3403.2,3403.1,5.06227389]
[1735465017333,1.33177154,3403.2,3403.1,4.61437389]
[1735465017932,0.29436,3402.8,3402.7,5.06227389]
[1735465018330,1.33181154,3402.8,3402.7,5.06227389]
[1735465018526,1.33181154,3402.8,3402.7,4.61437389]
[1735465019136,1.03745154,3402.8,3402.6,0.4426]
[1735465019336,0.29436,3402.7,3402.6,0.4426]
[1735465020235,3.76286662,3402.7,3402.6,0.4426]
[1735465020641,3.46850662,3402.7,3402.4,0.4444]
[1735465020841,0.29438,3402.5,3402.4,0.4444]
[1735465021034,3.50218,3402.5,3402.4,0.4444]
[1735465028445,3.96698,3402.5,3402.4,0.4444]
[1735465029145,3.6726,3402.5,3402.3,0.4257]
[1735465029342,0.29442,3402.1,3402.0,0.4431]
[1735465030441,0.72522,3402.1,3402.0,0.4431]
[1735465031346,5.51813708,3402.5,3402.0,1.48055154]
[1735465031644,0.29442,3402.2,3402.0,0.73752]
[1735465032048,0.29442,3402.1,3402.0,0.73752]
[1735465032748,0.29442,3402.1,3402.0,1.77497154]
[1735465033048,5.51813708,3402.5,3402.0,1.48055154]
[1735465033239,0.2944,3402.3,3402.2,1.33186154]
[1735465034039,0.2944,3402.3,3402.2,1.03745154]
[1735465035848,3.2078,3402.5,3402.0,1.48055154]
[1735465036052,0.29442,3402.1,3402.0,1.48055154]
[1735465036248,0.29442,3402.1,3402.0,0.4431]
[1735465036846,3.50222,3402.1,3402.0,0.4431]
[1735465041253,0.29443,3401.9,3401.8,0.425]
[1735465041954,0.73413,3401.9,3401.8,0.425]
[1735465042451,0.29447,3401.5,3401.4,0.4602]
[1735465043451,2.36385473,3401.6,3401.3,0.4292]
[1735465043652,0.73418,3401.4,3401.3,0.4292]
[1735465045645,0.29451,3401.0,3400.9,0.4403]
[1735465046845,0.29451,3401.0,3400.9,0.883]
[1735465049262,0.29451,3401.0,3400.9,0.4427]
[1735465050848,0.29454,3400.7,3400.6,0.4512]
[1735465053759,3.2078,3400.7,3400.4,0.444]
[1735465053954,0.29455,3400.5,3400.4,0.444]
[1735465066566,0.29455,3400.5,3400.4,0.73856]
[1735465069569,0.29455,3400.5,3400.4,0.444]
[1735465072475,0.29458,3400.2,3400.1,0.4532]
[1735465072678,0.29458,3400.2,3400.1,0.82156372]
[1735465073473,0.29458,3400.2,3400.1,0.82156017]
[1735465076578,0.29458,3400.2,3400.1,0.82155174]
[1735465079473,0.29458,3400.2,3400.1,0.82156246]
[1735465079977,0.29458,3400.2,3400.1,0.82156227]
[1735465081681,0.29458,3400.2,3400.1,0.82156302]
[1735465081885,0.29458,3400.2,3400.1,0.82156299]
[1735465084379,3.2078,3400.3,3400.1,0.82156299]
[1735465084586,0.29457,3400.4,3400.3,0.29457]
[1735465084779,0.29457,3400.4,3400.3,0.36836299]
[1735465085681,5.51813708,3400.7,3400.3,0.36836299]
[1735465085873,3.2078,3400.7,3400.6,0.29455]
[1735465086078,3.2078,3400.7,3400.6,0.66291299]
[1735465087680,3.2078,3400.7,3400.6,0.66284849]
[1735465090190,3.2078,3400.7,3400.6,5.27722238]
[1735465091391,3.2078,3400.7,3400.6,5.27721975]
[1735465091987,3.2078,3400.7,3400.6,5.70381975]
[1735465092785,3.50234,3400.7,3400.6,5.40926975]
[1735465093187,3.50234,3400.7,3400.6,5.40927096]
[1735465093391,3.50234,3400.7,3400.6,5.77756801]
[1735465093989,3.50234,3400.7,3400.6,5.40927094]
[1735465094293,3.50234,3400.7,3400.6,11.56903183]
[1735465094694,0.29454,3400.7,3400.6,11.56903183]
[1735465095496,0.29454,3400.7,3400.6,10.90618478]
[1735465095897,0.29454,3400.7,3400.6,6.29181089]
[1735465096798,0.74754,3400.7,3400.6,5.86521089]
[1735465096995,0.453,3400.7,3400.5,6.88523596]
[1735465097195,0.29455,3400.6,3400.5,6.88523596]
[1735465097502,5.86620473,3400.6,3400.5,6.88523596]
[1735465098701,5.86620473,3400.6,3400.2,0.4508]
[1735465098702,10.20112983,3400.6,3400.2,0.4508]
[1735465098900,0.29457,3400.3,3400.2,0.4508]
[1735465099590,10.93750983,3400.6,3400.1,4.62554961]
[1735465099792,0.75178,3400.2,3400.1,4.62554961]
[1735465100199,0.75178,3400.2,3400.0,4.62554961]
[1735465100200,0.29459,3400.1,3400.0,4.62554961]
[1735465100395,0.29459,3400.1,3400.0,4.99392486]
[1735465101294,0.29459,3400.1,3400.0,4.62554961]
[1735465101693,0.2946,3400.0,3399.9,5.04944961]
[1735465101890,0.2946,3400.0,3399.9,5.41784026]
[1735465102300,0.2946,3400.0,3399.9,5.04944961]
[1735465102599,0.2946,3400.0,3399.9,4.62554961]
[1735465103098,5.98087663,3400.2,3399.8,4.62554961]
[1735465103099,0.29461,3399.9,3399.8,4.62554961]
[1735465103298,0.29461,3399.9,3399.8,4.99394294]
[1735465104300,0.29461,3399.9,3399.8,4.62554961]
[1735465105892,4.67973136,3400.0,3399.7,4.62554961]
[1735465106098,0.29462,3399.8,3399.7,4.62554961]
[1735465106803,3.50242,3399.8,3399.7,4.62554961]
[1735465106992,5.52367663,3399.8,3399.5,0.4239]
[1735465107196,0.29463,3399.6,3399.5,0.4239]
[1735465107604,0.75803,3399.6,3399.5,0.4239]
[1735465108803,3.07390663,3399.6,3399.5,0.4239]
[1735465110400,0.75803,3399.6,3399.5,0.4239]
[1735465112106,0.4634,3399.6,3399.2,41.2387]
[1735465112306,0.29466,3399.3,3399.2,41.2387]
[1735465113304,0.29466,3399.3,3399.2,0.4387]
[1735465115006,0.29466,3399.3,3399.2,41.2387]
[1735465115801,0.29466,3399.3,3399.2,0.4387]
[1735465116510,0.29466,3399.3,3399.2,41.2387]
[1735465118208,0.29466,3399.3,3399.2,0.4387]
[1735465119107,0.292118,3399.3,3399.2,0.316]
[1735465119703,0.4634,3399.6,3399.2,0.316]
[1735465119909,0.29465,3399.4,3399.2,0.316]
[1735465120107,0.29465,3399.4,3399.2,0.61066]
[1735465121612,0.29465,3399.4,3399.3,0.36842207]
[1735465123305,0.29465,3399.4,3399.3,0.66308207]
[1735465124015,0.29465,3399.4,3399.3,0.36842207]
[1735465124811,0.29465,3399.4,3399.3,0.66309048]
[1735465125914,0.29465,3399.4,3399.3,0.36843048]
[1735465127812,0.29465,3399.4,3399.2,0.61066]
[1735465127813,0.29466,3399.3,3399.2,0.61066]
[1735465128013,0.29466,3399.3,3399.2,0.97909428]
[1735465128215,0.29466,3399.3,3399.2,0.61066]
[1735465128414,0.29466,3399.3,3399.2,0.97909362]
[1735465129918,0.29466,3399.3,3399.2,0.61066]
[1735465130114,0.29466,3399.3,3399.2,0.97909362]
[1735465131020,0.29466,3399.3,3399.2,0.97909392]
[1735465132420,0.29466,3399.3,3399.2,0.68443392]
[1735465132920,0.29466,3399.3,3399.2,0.97910392]
[1735465134022,0.29466,3399.4,3399.3,0.29466]
[1735465134225,0.29466,3399.4,3399.3,0.66309392]
[1735465134918,0.29466,3399.4,3399.3,0.36843392]
[1735465137023,0.29466,3399.4,3399.3,0.36843371]
[1735465137524,0.29466,3399.4,3399.3,0.36843229]
[1735465139325,1.33521572,3399.4,3399.3,0.36843229]
[1735465139625,1.78521572,3399.4,3399.3,0.36843229]
[1735465140226,1.78520572,3399.4,3399.3,0.36846029]
[1735465142327,1.78520572,3399.4,3399.3,0.36846287]
[1735465144221,0.29467,3399.2,3399.1,4.62554961]
[1735465144530,1.33522572,3399.2,3399.1,4.62554961]
[1735465145028,0.29468,3399.1,3399.0,4.62554961]
[1735465145329,1.76893572,3399.1,3399.0,4.9940519]
[1735465145527,0.72838,3399.1,3399.0,4.9940519]
[1735465145732,3.92384673,3399.4,3399.0,6.03458381]
[1735465145929,3.47384673,3399.4,3399.3,0.29466]
[1735465146130,3.47384673,3399.4,3399.3,0.66313848]
[1735465146323,5.78834828,3399.5,3399.4,0.29465]
[1735465146522,5.78834828,3399.5,3399.4,1.7036842]
[1735465146722,6.08298828,3399.5,3399.4,0.36847848]
[1735465146917,5.78834828,3399.5,3399.4,0.66312848]
[1735465147323,0.29464,3399.5,3399.4,13.07404496]
[1735465147525,0.29464,3399.5,3399.4,12.7793216]
[1735465148031,1.04055572,3399.8,3399.4,12.7793216]
[1735465148336,1.04055572,3399.6,3399.5,0.36840954]
[1735465148533,1.33518572,3399.6,3399.5,0.36840954]
[1735465149336,0.29465,3399.4,3399.3,6.88523596]
[1735465149528,1.33520572,3399.4,3399.3,6.88523596]
[1735465150034,1.79370572,3399.4,3399.3,7.25370996]
[1735465150229,1.79370572,3399.4,3399.3,6.88523596]
[1735465150434,1.79370572,3399.4,3399.1,4.63465342]
[1735465150435,0.29467,3399.2,3399.1,4.63465342]
[1735465150626,0.29467,3399.2,3399.1,5.00313073]
[1735465154331,0.29467,3399.2,3399.1,5.00312954]
[1735465154935,0.29467,3399.2,3399.1,5.00312982]
[1735465156534,0.29467,3399.2,3399.1,5.00313121]
[1735465156933,0.29467,3399.2,3399.1,0.36847779]
[1735465157536,0.29467,3399.2,3399.1,0.36847672]
[1735465157735,3.47432052,3399.3,3399.0,5.08885342]
[1735465157944,0.29468,3399.1,3399.0,5.08885342]
[1735465158143,0.29468,3399.1,3399.0,5.4573312]
[1735465161343,0.29468,3399.1,3399.0,4.63465342]
[1735465161541,1.15498,3399.1,3399.0,4.63465342]
[1735465161740,1.15498,3399.1,3398.6,9.63901462]
[1735465161741,0.29468,3399.0,3398.9,4.63465342]
[1735465161949,2.66254947,3399.0,3398.9,4.63465342]
[1735465163445,0.29471,3398.7,3398.6,0.4587]
[1735465163839,0.29471,3398.7,3398.6,1.27883145]
[1735465164346,0.29471,3398.7,3398.6,0.9103]
[1735465172349,1.33574606,3398.7,3398.6,0.9103]
[1735465178656,0.29474,3398.4,3398.3,0.4305]
[1735465178955,0.29474,3398.4,3398.3,0.79904768]
[1735465179148,0.29474,3398.4,3398.3,0.79904774]
[1735465179952,0.29474,3398.4,3398.3,1.26304774]
[1735465181756,0.29474,3398.4,3398.3,0.83254774]
[1735465182363,0.29474,3398.4,3398.3,0.83256457]
[1735465182753,3.50254,3398.4,3398.3,0.8325689]
[1735465183759,3.96394,3398.4,3398.3,0.8325689]
[1735465184766,3.96394,3398.4,3398.3,0.83257472]
[1735465185061,0.75614,3398.4,3398.3,0.83257472]
[1735465185256,3.96394,3398.4,3398.3,0.464]
[1735465185455,3.96394,3398.4,3398.3,0.83257454]
[1735465188358,3.50254,3398.4,3398.3,0.83257407]
[1735465191365,3.50254,3398.4,3398.3,0.464]
[1735465191556,3.50254,3398.4,3398.3,0.83257956]
[1735465191956,3.50254,3398.4,3398.3,0.83257957]
[1735465193854,3.50254,3398.4,3398.3,0.83257608]
[1735465194565,3.50254,3398.4,3398.3,0.464]
[1735465194766,3.50254,3398.4,3398.3,0.83257793]
[1735465197673,3.50254,3398.4,3398.3,0.83258328]
[1735465199869,3.50254,3398.4,3398.3,0.36858328]
[1735465200373,3.2078,3398.4,3398.1,0.4489]
[1735465200570,1.33578606,3398.2,3398.1,0.4489]
[1735465200770,1.33578606,3398.2,3398.1,0.81749867]
[1735465201370,1.33578606,3398.2,3398.1,0.81750134]
[1735465201771,1.33578606,3398.2,3398.1,0.36860134]
[1735465201974,0.29477,3398.0,3397.9,5.05545342]
[1735465202170,1.33580606,3398.0,3397.9,5.42406364]
[1735465202370,4.54360606,3398.0,3397.9,5.05545342]
[1735465202570,4.54360606,3398.0,3397.9,5.4240706]
[1735465203167,4.54360606,3398.0,3397.9,5.05545342]
[1735465203480,4.54360606,3398.0,3397.9,0.4208]
[1735465206173,6.97610734,3398.0,3397.9,0.4208]
[1735465206373,6.97610734,3398.0,3397.9,1.83045011]
[1735465207079,6.97610734,3398.0,3397.9,41.58941405]
[1735465207477,3.50257,3398.0,3397.9,46.22406747]
[1735465208377,4.54360606,3398.0,3397.9,5.42406747]
[1735465208983,4.54360606,3398.0,3397.9,5.42406587]
[1735465209574,4.54360606,3398.0,3397.9,0.78941245]
[1735465211978,4.54360606,3398.0,3397.9,0.78941867]
[1735465215684,3.50257,3398.0,3397.9,0.78941867]
[1735465217574,3.50257,3398.0,3397.9,1.08419867]
[1735465217779,3.2078,3398.0,3397.9,1.08419867]
[1735465218281,3.2078,3398.0,3397.9,1.08416781]
[1735465218486,3.2078,3398.0,3397.9,5.71882123]
[1735465218678,3.50257,3398.0,3397.9,5.71882123]
[1735465218878,3.50257,3398.0,3397.9,5.42404123]
[1735465221379,3.50257,3398.0,3397.9,5.42404968]
[1735465221981,3.50257,3398.0,3397.9,5.42405625]
[1735465223689,3.50257,3398.0,3397.9,0.78940283]
[1735465223890,3.50257,3398.0,3397.9,0.78940578]
[1735465224588,3.50257,3398.0,3397.9,0.78940728]
[1735465225786,0.29477,3398.0,3397.9,0.78940728]
[1735465230588,0.29477,3398.0,3397.9,0.4208]
[1735465230793,0.29477,3398.0,3397.9,0.78940775]
[1735465231188,0.29477,3398.0,3397.9,0.78940678]
[1735465231893,3.76830734,3398.0,3397.9,0.78940678]
[1735465233090,3.76830734,3398.0,3397.9,5.4240602]
[1735465233790,3.76830734,3398.0,3397.9,5.42406077]
[1735465236995,3.76830734,3398.0,3397.9,5.42406185]
[1735465240400,3.76830734,3398.0,3397.9,5.05545342]
[1735465240709,3.76830734,3398.0,3397.9,5.42405983]
[1735465241209,3.76830734,3398.0,3397.9,10.98642813]
[1735465242209,3.76830734,3398.0,3397.9,6.35177471]
[1735465243908,0.29477,3398.0,3397.9,6.35177471]
[1735465249609,0.29477,3398.0,3397.9,5.9831683]
[1735465249805,0.29477,3398.0,3397.9,6.35177819]
[1735465250207,0.29477,3398.0,3397.9,13.23701415]
[1735465251410,0.29477,3398.0,3397.9,13.23701016]
[1735465252310,0.29477,3398.0,3397.9,13.23701061]
[1735465255217,0.29477,3398.0,3397.9,12.86840426]
[1735465255415,0.29477,3398.0,3397.9,13.23701515]
[1735465256013,4.92719737,3398.0,3397.9,13.23701515]
[1735465257211,0.29477,3398.0,3397.9,13.23701515]
[1735465258311,0.29477,3398.0,3397.9,13.23700466]
[1735465258719,4.92719737,3398.0,3397.9,13.23700466]
[1735465258919,4.92719737,3398.0,3397.9,13.23700039]
[1735465260021,3.77621919,3398.0,3397.9,6.35176443]
[1735465260617,3.77621919,3398.0,3397.9,6.35176497]
[1735465261124,3.77621919,3398.0,3397.9,6.35176471]
[1735465262025,3.77621919,3398.0,3397.9,6.64654471]
[1735465263820,3.77621919,3398.0,3397.9,6.64654224]
[1735465264329,3.48144919,3398.0,3397.9,6.64654224]
[1735465264514,3.77621919,3398.0,3397.9,6.64654224]
[1735465264721,3.48144919,3398.0,3397.9,6.64654224]
[1735465265725,2.78134919,3398.0,3397.9,7.6875783]
[1735465266820,2.36271394,3398.0,3397.9,7.92655408]
[1735465267729,3.2078,3398.2,3398.1,0.29476]
[1735465268028,3.2078,3398.2,3398.1,1.70434796]
[1735465268925,3.2078,3398.2,3398.1,18.42384025]
[1735465269118,3.2078,3398.2,3398.1,18.42383337]
[1735465269720,3.2078,3398.2,3398.1,18.05528835]
[1735465269926,3.2078,3398.2,3398.1,27.69339788]
[1735465270427,3.2078,3398.6,3398.5,0.29473]
[1735465270730,3.2078,3398.6,3398.5,0.66327481]
[1735465271329,4.63242737,3398.9,3398.5,5.74153626]
[1735465271521,4.63242737,3398.9,3398.8,0.2947]
[1735465271724,4.63242737,3398.9,3398.8,0.66324481]
[1735465272025,4.63242737,3398.9,3398.8,1.09124481]
[1735465272222,4.63242737,3398.9,3398.8,41.89124481]
[1735465272726,7.84022737,3399.4,3399.3,0.29466]
[1735465273922,3.2078,3399.4,3399.3,0.29466]
[1735465274822,3.2078,3399.4,3399.0,1.49303606]
[1735465274823,1.04103606,3399.5,3399.0,1.49303606]
[1735465275024,1.04103606,3399.5,3399.4,0.29465]
[1735465275226,4.24883606,3399.5,3399.4,0.29465]
[1735465278225,3.2078,3399.5,3399.4,0.29465]
[1735465280720,3.2078,3399.5,3399.4,0.72955]
[1735465280921,3.2078,3399.5,3399.4,0.29465]
[1735465281129,4.24883606,3399.5,3399.4,0.29465]
[1735465282433,3.2078,3399.5,3399.4,0.29465]
[1735465284429,4.24883606,3399.5,3399.0,0.452]
[1735465284734,1.04103606,3399.3,3399.2,0.29466]
[1735465285031,0.29466,3399.4,3398.8,1.94093606]
[1735465285235,0.4658,3399.2,3399.1,0.29468]
[1735465285628,3.2078,3399.5,3399.0,1.04103606]
[1735465285831,3.2078,3399.5,3399.4,0.29465]
[1735465286237,3.2078,3399.5,3399.4,1.16305]
[1735465286535,3.2078,3399.5,3399.4,41.96305]
[1735465286838,3.2078,3399.9,3399.5,0.29464]
[1735465287037,3.2078,3399.9,3399.8,1.33565606]
[1735465289235,3.2078,3399.9,3399.8,42.13565606]
[1735465290134,3.6598,3400.4,3400.3,0.29457]
[1735465303851,3.2078,3400.4,3400.3,0.29457]
[1735465304046,3.2078,3400.4,3400.3,0.66288785]
[1735465304252,3.2078,3401.0,3400.3,1.51231785]
[1735465304453,1.3261,3401.2,3400.9,1.04103606]
[1735465304754,1.62059,3401.2,3401.1,1.33553606]
[1735465307756,0.2945,3401.1,3401.0,0.29451]
[1735465307948,0.29451,3401.0,3400.9,1.33554606]